fUST/lending_fUST_20250917
["ID","MTS","AMOUNT","RATE_DAILY","PERIOD"]
[385880894,1758088242460,-743.46,0.00024657,3]
[385880895,1758088242469,-520.15,0.00024657,3]
[385880896,1758088242478,-529.8,0.00024657,3]
[385880897,1758088242487,-1121.96,0.00024657,3]
[385880898,1758088242496,-890.8,0.00024657,3]
[385880899,1758088242505,-1989.71,0.00024657,3]
[385880900,1758088242514,-480.0,0.00024657,3]
[385880901,1758088242523,-1222.0,0.00024657,3]
[385880902,1758088242533,-512.09,0.00024657,3]
[385880903,1758088242542,-480.0,0.00024657,3]
[385880904,1758088242551,-480.0,0.00024657,3]
[385880905,1758088242560,-1170.88,0.00024657,3]
[385880906,1758088242569,-606.96,0.00024657,3]
[385880907,1758088242578,-480.0,0.00024657,3]
[385880908,1758088242587,-6251.21,0.00024657,3]
[385880909,1758088242596,-1283.59,0.00024657,3]
[385880910,1758088242605,-1670.65,0.00024657,3]
[385880911,1758088242614,-2091.14,0.00024657,3]
[385880912,1758088242623,-480.0,0.00024657,3]
[385880913,1758088242632,-480.0,0.00024657,3]
[385880914,1758088242641,-531.04,0.00024657,3]
[385880915,1758088242650,-3082.42,0.00024657,3]
[385880916,1758088242659,-502.35,0.00024657,3]
[385880917,1758088242669,-480.0,0.00024657,3]
[385880918,1758088242678,-1376.48,0.00024657,3]
[385880919,1758088242688,-652.76,0.00024657,3]
[385880920,1758088242697,-765.61,0.00024657,3]
[385880921,1758088242706,-1140.2,0.00024657,3]
[385880922,1758088242715,-569.3,0.00024657,3]
[385880923,1758088242725,-480.0,0.00024657,3]
[385880924,1758088242734,-480.0,0.00024657,3]
[385880925,1758088242743,-646.69,0.00024657,3]
[385880926,1758088242752,-11519.66,0.00024657,3]
[385880927,1758088242761,-480.0,0.00024657,2]
[385880928,1758088242771,-537.96,0.00024657,3]
[385880929,1758088242781,-1576.44,0.00024657,3]
[385880930,1758088242790,-483.58,0.00024657,3]
[385880931,1758088242799,-800.0,0.00024658,7]
[385880932,1758088242808,-380.0,0.00024658,2]
[385880933,1758088242818,-200.0,0.00024658,2]
[385880934,1758088242832,-151.0,0.00024658,7]
[385880935,1758088242842,-151.0,0.00024658,7]
[385880936,1758088242851,-151.0,0.00024658,7]
[385880937,1758088242860,-151.0,0.00024658,7]
[385880938,1758088242870,-151.0,0.00024658,7]
[385880939,1758088242879,-151.0,0.00024658,7]
[385880940,1758088242888,-151.0,0.00024658,7]
[385880941,1758088242898,-219.384576,0.00024658,7]
[385880942,1758088242907,-151.0,0.00024658,2]
[385880944,1758088242916,-500.0,0.00024658,2]
[385880945,1758088242925,-500.0,0.00024673,2]
[385880947,1758088242935,-502.34960367,0.00024673,2]
[385880948,1758088242944,-500.0,0.00024673,2]
[385880949,1758088242953,-502.98516596,0.00024673,2]
[385880950,1758088242962,-460.0,0.00024674,2]
[385880951,1758088242972,-2260.62,0.000247,7]
[385880952,1758088242981,-1482.16,0.000247,7]
[385880954,1758088242992,-1100.0,0.00024712,2]
[385880955,1758088243001,-160.0,0.00024728,6]
[385880957,1758088243010,-500.72365555,0.00024773,2]
[385880959,1758088243019,-500.0,0.00024773,2]
[385880962,1758088243027,-572.65369651,0.00024773,2]
[385880964,1758088243035,-500.0,0.00024773,2]
[385880966,1758088243043,-501.12116695,0.00024773,2]
[385880968,1758088243052,-500.0,0.00024773,2]
[385880970,1758088243062,-500.50748339,0.00024773,2]
[385880972,1758088243071,-500.0,0.00024773,2]
[385880973,1758088243080,-1105.14757143,0.00024774,2]
[385880974,1758088243089,-13528.82544353,0.00024774,2]
[385880975,1758088243098,-1320.08,0.000248,7]
[385880976,1758088243107,-2000.0,0.000248,2]
[385880977,1758088243116,-2000.0,0.000248,2]
[385880978,1758088243125,-941.90551079,0.00024823,2]
[385880979,1758088243135,-5045.08456035,0.00024831,2]
[385880980,1758088243143,-4302.21347352,0.00024831,2]
[385880981,1758088243153,-800.0,0.00024858,2]
[385880983,1758088243162,-12500.0,0.00024864,7]
[385880985,1758088243173,-12500.0,0.00024864,7]
[385880987,1758088243182,-500.0,0.00024873,2]
[385880989,1758088243191,-500.0,0.00024873,2]
[385880991,1758088243200,-501.0312842,0.00024873,2]
[385880993,1758088243210,-502.74675269,0.00024873,2]
[385880995,1758088243219,-500.0,0.00024873,2]
[385880997,1758088243228,-501.95371986,0.00024873,2]
[385880999,1758088243237,-500.0,0.00024873,2]
[385881001,1758088243246,-500.0,0.00024873,2]
[385881003,1758088243256,-500.0,0.00024873,2]
[385881005,1758088243265,-500.0,0.00024873,2]
[385881007,1758088243274,-502.46355408,0.00024873,2]
[385881009,1758088243283,-500.0,0.00024873,2]
[385881011,1758088243292,-380.64569965,0.00024873,2]
[385881013,1758088243302,-502.35718666,0.00024873,2]
[385881015,1758088243311,-502.93539901,0.00024873,2]
[385881017,1758088243320,-500.0,0.00024873,2]
[385881019,1758088243329,-500.0,0.00024873,2]
[385881021,1758088243338,-574.93711158,0.00024873,2]
[385881023,1758088243347,-12500.0,0.00024873,7]
[385881026,1758088243359,-12500.0,0.00024873,7]
[385881028,1758088243374,-1219.33370319,0.00024873,7]
[385881031,1758088243387,-800.0,0.00024886,2]
[385881033,1758088243399,-4859.0,0.000249,7]
[385881035,1758088243411,-528756.444433,0.000249,2]
[385881038,1758088243426,-559.0,0.00024931,2]
[385881040,1758088243439,-480.0,0.00024931,3]
[385881043,1758088243452,-480.0,0.00024931,3]
[385881045,1758088243466,-584.0,0.00024931,3]
[385881048,1758088243479,-480.0,0.00024931,3]
[385881050,1758088243492,-418.25786025,0.00024931,3]
[385881053,1758088243507,-1148.77,0.00024931,3]
[385881055,1758088243520,-480.0,0.00024931,3]
[385881057,1758088243532,-480.0,0.00024931,3]
[385881060,1758088243544,-554.43,0.00024931,3]
[385881062,1758088243556,-482.75,0.00024931,3]
[385881064,1758088243568,-497.31,0.00024931,3]
[385881067,1758088243581,-1005.56,0.00024931,3]
[385881069,1758088243594,-480.0,0.00024931,3]
[385881071,1758088243604,-480.0,0.00024931,3]
[385881073,1758088243614,-764.21,0.00024931,3]
[385881076,1758088243626,-243.39,0.00024931,3]
[385881078,1758088243638,-2797.1,0.00024931,3]
[385881080,1758088243651,-480.0,0.00024931,3]
[385881083,1758088243664,-480.0,0.00024931,3]
[385881085,1758088243677,-652.87,0.00024931,3]
[385881088,1758088243691,-928.61,0.00024931,3]
[385881090,1758088243705,-2098.66,0.00024931,3]
[385881093,1758088243718,-480.0,0.00024931,3]
[385881095,1758088243731,-743.46,0.00024931,3]
[385881097,1758088243741,-520.15,0.00024931,3]
[385881099,1758088243751,-529.8,0.00024931,3]
[385881101,1758088243762,-1121.96,0.00024931,3]
[385881104,1758088243775,-890.8,0.00024931,3]
[385881106,1758088243789,-1989.71,0.00024931,3]
[385881109,1758088243802,-411.26378563,0.00024931,3]
[385881111,1758088243812,-1222.0,0.00024931,3]
[385881113,1758088243828,-512.09,0.00024931,3]
[385881115,1758088243840,-480.0,0.00024931,3]
[385881118,1758088243853,-480.0,0.00024931,3]
[385881120,1758088243865,-1170.88,0.00024931,3]
[385881122,1758088243876,-606.96,0.00024931,3]
[385881124,1758088243887,-480.0,0.00024931,3]
[385881126,1758088243898,-6251.21,0.00024931,3]
[385881128,1758088243909,-1283.59,0.00024931,3]
[385881131,1758088243922,-1670.65,0.00024931,3]
[385881133,1758088243933,-2091.14,0.00024931,3]
[385881135,1758088243944,-480.0,0.00024931,3]
[385881137,1758088243956,-480.0,0.00024931,3]
[385881139,1758088243966,-531.04,0.00024931,3]
[385881142,1758088243978,-3082.42,0.00024931,3]
[385881144,1758088243990,-502.35,0.00024931,3]
[385881146,1758088244003,-480.0,0.00024931,3]
[385881148,1758088244014,-1376.48,0.00024931,3]
[385881151,1758088244026,-652.76,0.00024931,3]
[385881153,1758088244036,-765.61,0.00024931,3]
[385881155,1758088244047,-1140.2,0.00024931,3]
[385881157,1758088244058,-480.0,0.00024931,3]
[385881160,1758088244069,-569.3,0.00024931,3]
[385881162,1758088244080,-480.0,0.00024931,3]
[385881164,1758088244091,-646.69,0.00024931,3]
[385881166,1758088244103,-11519.66,0.00024931,3]
[385881168,1758088244114,-480.0,0.00024931,2]
[385881171,1758088244125,-537.96,0.00024931,3]
[385881173,1758088244137,-1576.44,0.00024931,3]
[385881175,1758088244148,-483.58,0.00024931,3]
[385881177,1758088244160,-160.01073712,0.00024932,2]
[385881179,1758088244172,-500.0,0.00024932,2]
[385881182,1758088244183,-160.0,0.00024987,7]
[385881184,1758088244194,-36206.16,0.00025,7]
[385881186,1758088244206,-1071.06049471,0.00025,2]
[385881188,1758088244217,-11184.4688112,0.00025,2]
[385881191,1758088244228,-154.0,0.00025,2]
[385881193,1758088244239,-212.42884485,0.00025074,2]
[385881195,1758088244251,-800.0,0.00025114,7]
[385881197,1758088244262,-977.0,0.00025154,2]
[385881199,1758088244273,-410.0,0.00025154,2]
[385881202,1758088244285,-410.0,0.00025154,2]
[385881204,1758088244296,-2157.0,0.00025154,2]
[385881206,1758088244308,-634.0,0.00025154,2]
[385881208,1758088244319,-559.0,0.00025205,2]
[385881211,1758088244330,-480.0,0.00025205,3]
[385881213,1758088244343,-480.0,0.00025205,3]
[385881215,1758088244354,-584.0,0.00025205,3]
[385881218,1758088244367,-480.0,0.00025205,3]
[385881220,1758088244378,-1148.77,0.00025205,3]
[385881222,1758088244389,-480.0,0.00025205,3]
[385881224,1758088244401,-480.0,0.00025205,3]
[385881227,1758088244413,-554.43,0.00025205,3]
[385881229,1758088244424,-482.75,0.00025205,3]
[385881231,1758088244435,-497.31,0.00025205,3]
[385881233,1758088244447,-1005.56,0.00025205,3]
[385881235,1758088244458,-480.0,0.00025205,3]
[385881237,1758088244470,-480.0,0.00025205,3]
[385881240,1758088244481,-764.21,0.00025205,3]
[385881242,1758088244493,-243.39,0.00025205,3]
[385881244,1758088244505,-2797.1,0.00025205,3]
[385881246,1758088244515,-480.0,0.00025205,3]
[385881263,1758088244655,-480.0,0.00025205,3]
[385881265,1758088244666,-652.87,0.00025205,3]
[385881267,1758088244675,-928.61,0.00025205,3]
[385881269,1758088244685,-143.48571465,0.00025205,3]
[385881303,1758088245000,-480.0,0.00021917,2]
[385881305,1758088245010,-347.08692925,0.00022191,3]
[385881307,1758088245019,-244.93704084,0.00022257,2]
[385881310,1758088245031,-255.06295916,0.00022257,2]
[385881312,1758088245040,-247.60051647,0.00022257,2]
[385881313,1758088245049,-181.22494714,0.00022257,2]
[385881316,1758088245060,-318.77505286,0.00022257,2]
[385881318,1758088245069,-500.0,0.00022257,2]
[385881320,1758088245078,-239.46086718,0.00022257,2]
[385881322,1758088245090,-136.68654462,0.00022257,2]
[385881324,1758088245099,-480.0,0.00024657,3]
[385881326,1758088245109,-480.0,0.00024931,3]
[385881328,1758088245119,-1955.17428535,0.00025205,3]
[385881330,1758088245128,-480.0,0.00025205,3]
[385881332,1758088245138,-743.46,0.00025205,3]
[385881334,1758088245148,-520.15,0.00025205,3]
[385881336,1758088245158,-529.8,0.00025205,3]
[385881338,1758088245168,-1121.96,0.00025205,3]
[385881340,1758088245178,-890.8,0.00025205,3]
[385881342,1758088245187,-1697.34916843,0.00025205,3]
[385881344,1758088245199,-292.36083157,0.00025205,3]
[385881346,1758088245209,-944.59066532,0.00025205,3]
[385881352,1758088245260,-277.40933468,0.00025205,3]
[385881354,1758088245269,-512.09,0.00025205,3]
[385881356,1758088245280,-480.0,0.00025205,3]
[385881358,1758088245289,-480.0,0.00025205,3]
[385881360,1758088245299,-1170.88,0.00025205,3]
[385881362,1758088245308,-606.96,0.00025205,3]
[385881363,1758088245317,-480.0,0.00025205,3]
[385881364,1758088245327,-6251.21,0.00025205,3]
[385881365,1758088245336,-1283.59,0.00025205,3]
[385881366,1758088245346,-1670.65,0.00025205,3]
[385881367,1758088245355,-480.0,0.00025205,3]
[385881368,1758088245365,-1249.57609583,0.00025205,3]
[385881369,1758088245460,-150.406,0.00022154,2]
[385881370,1758088245470,-841.56390417,0.00025205,3]
[385881371,1758088245480,-480.0,0.00025205,3]
[385881372,1758088245489,-531.04,0.00025205,3]
[385881373,1758088245498,-3082.42,0.00025205,3]
[385881374,1758088245507,-502.35,0.00025205,3]
[385881375,1758088245516,-480.0,0.00025205,3]
[385881376,1758088245525,-1376.48,0.00025205,3]
[385881377,1758088245535,-652.76,0.00025205,3]
[385881378,1758088245544,-765.61,0.00025205,3]
[385881379,1758088245553,-1140.2,0.00025205,3]
[385881380,1758088245562,-480.0,0.00025205,3]
[385881381,1758088245571,-480.0,0.00025205,3]
[385881382,1758088245581,-646.69,0.00025205,3]
[385881383,1758088245590,-11519.66,0.00025205,3]
[385881384,1758088245599,-480.0,0.00025205,2]
[385881385,1758088245608,-537.96,0.00025205,3]
[385881386,1758088245617,-1576.44,0.00025205,3]
[385881387,1758088245627,-483.58,0.00025205,3]
[385881388,1758088245636,-480.0,0.00025205,3]
[385881389,1758088245645,-500.0,0.00025206,2]
[385881390,1758088245655,-272.2599297,0.0002521,2]
[385881391,1758088245665,-1000.0,0.00025221,2]
[385881392,1758088245674,-1003.90952613,0.00025221,2]
[385881393,1758088245683,-560.0,0.00025222,2]
[385881394,1758088245692,-160.0,0.00025247,8]
[385881395,1758088245701,-800.0,0.00025315,2]
[385881396,1758088245710,-501.61088687,0.00025321,2]
[385881397,1758088245719,-1000.0,0.00025321,2]
[385881398,1758088245728,-1004.02867387,0.00025321,2]
[385881399,1758088245740,-503.24120982,0.00025321,2]
[385881400,1758088245749,-1000.0,0.00025421,2]
[385881401,1758088245758,-1000.0,0.00025421,2]
[385881402,1758088245767,-503.15292882,0.00025421,2]
[385881403,1758088245776,-1000.0,0.00025421,2]
[385881405,1758088245785,-1000.0,0.00025421,2]
[385881406,1758088245794,-1000.0,0.00025421,2]
[385881407,1758088245803,-1000.0,0.00025421,2]
[385881408,1758088245812,-583.49596287,0.00025421,2]
[385881409,1758088245822,-502.08175363,0.00025421,2]
[385881410,1758088245833,-1006.37132136,0.00025421,2]
[385881411,1758088245842,-102405.55258389,0.00025444,2]
[385881569,1758088393256,216.47046657,0.000199,2]
[385881570,1758088580921,317.74076358,0.000199,2]
[385881571,1758088580999,317.74076352,0.00021149,2]
[385881572,1758088767994,332.4209711,0.000199,2]
[385881573,1758088768073,332.42097093,0.00021149,2]
[385881574,1758088959558,434.8208283,0.000199,2]
[385881575,1758088959676,434.82082818,0.00021149,2]
[385881582,1758089008623,6243.8,0.00021674,2]
[385881584,1758089148841,643.47206074,0.000199,2]
[385881585,1758089148925,643.47206071,0.00021149,2]
[385881589,1758089334972,644.20732607,0.000199,2]
[385881590,1758089335062,644.20732592,0.00021149,2]
[385881673,1758089437995,-6164.33,0.00021386,2]
[385881675,1758089438005,-2542.48911968,0.00021817,2]
[385881677,1758089438014,-1332.62774056,0.00021904,2]
[385881679,1758089438023,-251.16100922,0.00021904,2]
[385881681,1758089438032,-1200.0,0.0002191,2]
[385881682,1758089438041,-300.0,0.00021911,2]
[385881684,1758089438050,-300.0,0.00021911,2]
[385881686,1758089438059,-300.0,0.00021911,2]
[385881688,1758089438069,-300.0,0.00021911,2]
[385881690,1758089438078,-1200.0,0.00021912,2]
[385881692,1758089438087,-8364.36852843,0.00021917,2]
[385881695,1758089438098,-18053.58815619,0.00021917,2]
[385881696,1758089438107,-480.0,0.00021917,2]
[385881699,1758089438117,-480.0,0.00021917,2]
[385881702,1758089438126,-480.0,0.00021917,2]
[385881704,1758089438135,-5759.83,0.00021917,2]
[385881706,1758089438144,-480.0,0.00021917,2]
[385881708,1758089438153,-480.0,0.00021917,2]
[385881710,1758089438162,-480.0,0.00021917,2]
[385881712,1758089438171,-480.0,0.00021917,2]
[385881714,1758089438182,-480.0,0.00021917,2]
[385881716,1758089438191,-480.0,0.00021917,2]
[385881718,1758089438200,-196.05371869,0.00021917,2]
[385881720,1758089438209,-480.0,0.00021917,2]
[385881722,1758089438218,-422.28737177,0.00021917,2]
[385881724,1758089438227,-482.12821765,0.00021917,2]
[385881726,1758089438236,-480.0,0.00021917,2]
[385881728,1758089438245,-480.0,0.00021917,2]
[385881730,1758089438255,-481.3748249,0.00021917,2]
[385881732,1758089438264,-481.8233712,0.00021917,2]
[385881734,1758089438273,-2865.14,0.00021917,2]
[385881736,1758089438283,-480.0,0.00021917,2]
[385881738,1758089438292,-480.0,0.00021917,2]
[385881740,1758089438302,-480.0,0.00021917,2]
[385881742,1758089438311,-480.0,0.00021917,2]
[385881744,1758089438320,-560.09,0.00021917,2]
[385881746,1758089438330,-480.0,0.00021917,2]
[385881748,1758089438339,-570.1,0.00021917,2]
[385881750,1758089438348,-480.0,0.00021917,2]
[385881752,1758089438357,-480.0,0.00021917,2]
[385881754,1758089438366,-911.95,0.00021917,2]
[385881756,1758089438375,-480.0,0.00021917,2]
[385881758,1758089438387,-480.0,0.00021917,2]
[385881760,1758089438399,-1541.21,0.00021917,2]
[385881762,1758089438408,-480.0,0.00021917,2]
[385881764,1758089438417,-480.0,0.00021917,2]
[385881766,1758089438428,-514.23,0.00021917,2]
[385881768,1758089438438,-480.0,0.00021917,2]
[385881770,1758089438447,-480.0,0.00021917,2]
[385881772,1758089438456,-588.31,0.00021917,2]
[385881774,1758089438465,-536.65,0.00021917,2]
[385881776,1758089438474,-480.0,0.00021917,2]
[385881778,1758089438483,-688.24,0.00021917,2]
[385881780,1758089438492,-765.71,0.00021917,2]
[385881791,1758089438501,-480.0,0.00021917,2]
[385881796,1758089438631,-480.0,0.00021917,2]
[385881798,1758089438640,-993.51,0.00021917,2]
[385881800,1758089438650,-480.0,0.00021917,2]
[385881802,1758089438659,-480.0,0.00021917,2]
[385881804,1758089438668,-480.0,0.00021917,2]
[385881806,1758089438678,-480.0,0.00021917,2]
[385881808,1758089438687,-480.0,0.00021917,2]
[385881810,1758089438696,-480.0,0.00021917,2]
[385881812,1758089438706,-480.0,0.00021917,2]
[385881814,1758089438715,-480.0,0.00021917,2]
[385881815,1758089438724,-788.22,0.00021917,2]
[385881817,1758089438733,-480.0,0.00021917,2]
[385881819,1758089438742,-480.0,0.00021917,2]
[385881821,1758089438752,-526.52,0.00021917,2]
[385881823,1758089438761,-1282.0,0.00021917,2]
[385881825,1758089438770,-480.0,0.00021917,2]
[385881827,1758089438779,-480.0,0.00021917,2]
[385881829,1758089438788,-480.0,0.00021917,2]
[385881831,1758089438797,-961.89,0.00021917,2]
[385881833,1758089438806,-480.0,0.00021917,2]
[385881835,1758089438816,-285.95,0.00022181,10]
[385881837,1758089438826,-480.0,0.00022191,3]
[385881839,1758089438836,-480.0,0.00022191,3]
[385881841,1758089438844,-5759.83,0.00022191,3]
[385881843,1758089438854,-480.0,0.00022191,3]
[385881845,1758089438863,-480.0,0.00022191,3]
[385881847,1758089438872,-480.0,0.00022191,3]
[385881848,1758089438881,-480.0,0.00022191,3]
[385881849,1758089438891,-480.0,0.00022191,3]
[385881851,1758089438900,-480.0,0.00022191,3]
[385881852,1758089438909,-480.0,0.00022191,3]
[385881853,1758089438919,-294.52,0.00022191,3]
[385881854,1758089438930,-434.27767223,0.00022191,3]
[385881855,1758089438940,-2865.14,0.00022191,3]
[385881856,1758089438949,-480.0,0.00022191,3]
[385881857,1758089438958,-186.05,0.00022191,3]
[385881858,1758089438967,-480.0,0.00022191,3]
[385881859,1758089438976,-560.09,0.00022191,3]
[385881860,1758089438985,-570.1,0.00022191,3]
[385881861,1758089438994,-480.0,0.00022191,3]
[385881862,1758089439003,-480.0,0.00022191,3]
[385881864,1758089439013,-480.0,0.00022191,3]
[385881866,1758089439022,-911.95,0.00022191,3]
[385881867,1758089439031,-480.0,0.00022191,3]
[385881868,1758089439040,-480.0,0.00022191,3]
[385881869,1758089439048,-480.0,0.00022191,3]
[385881870,1758089439057,-1541.21,0.00022191,3]
[385881871,1758089439066,-480.0,0.00022191,3]
[385881872,1758089439075,-514.23,0.00022191,3]
[385881873,1758089439084,-480.0,0.00022191,3]
[385881875,1758089439093,-480.0,0.00022191,3]
[385881877,1758089439102,-588.31,0.00022191,3]
[385881878,1758089439111,-536.65,0.00022191,3]
[385881879,1758089439120,-480.0,0.00022191,3]
[385881880,1758089439129,-688.24,0.00022191,3]
[385881881,1758089439143,-765.71,0.00022191,3]
[385881882,1758089439152,-480.0,0.00022191,3]
[385881883,1758089439162,-480.0,0.00022191,3]
[385881884,1758089439171,-993.51,0.00022191,3]
[385881885,1758089439181,-480.0,0.00022191,3]
[385881886,1758089439191,-480.0,0.00022191,3]
[385881887,1758089439200,-480.0,0.00022191,3]
[385881888,1758089439210,-480.0,0.00022191,3]
[385881889,1758089439219,-480.0,0.00022191,3]
[385881890,1758089439229,-480.0,0.00022191,3]
[385881891,1758089439238,-480.0,0.00022191,3]
[385881892,1758089439247,-480.0,0.00022191,3]
[385881893,1758089439256,-788.22,0.00022191,3]
[385881894,1758089439266,-480.0,0.00022191,3]
[385881895,1758089439275,-480.0,0.00022191,3]
[385881896,1758089439286,-526.52,0.00022191,3]
[385881897,1758089439296,-1282.0,0.00022191,3]
[385881898,1758089439305,-480.0,0.00022191,3]
[385881899,1758089439314,-480.0,0.00022191,2]
[385881900,1758089439324,-480.0,0.00022191,3]
[385881901,1758089439333,-961.89,0.00022191,3]
[385881902,1758089439342,-480.0,0.00022191,3]
[385881903,1758089439352,-179.82017982,0.00022374,2]
[385881904,1758089439362,-644.20732592,0.00022398,2]
[385881905,1758089439371,-328.45,0.00022455,3]
[385881906,1758089439381,-164.23,0.00022455,3]
[385881907,1758089439392,-492.69,0.00022455,3]
[385881908,1758089439403,-480.0,0.00022465,3]
[385881909,1758089439413,-480.0,0.00022465,3]
[385881910,1758089439422,-977.19282622,0.00022465,3]
[385881911,1758089439437,-4782.63717378,0.00022465,3]
[385881912,1758089439447,-480.0,0.00022465,3]
[385881913,1758089439456,-513.01532091,0.00022465,3]
[385881914,1758089439467,-480.0,0.00022465,3]
[385881915,1758089439477,-480.0,0.00022465,3]
[385881916,1758089439487,-480.0,0.00022465,3]
[385881917,1758089439496,-480.0,0.00022465,3]
[385881918,1758089439506,-480.0,0.00022465,3]
[385881919,1758089439516,-2865.14,0.00022465,3]
[385881920,1758089439525,-480.0,0.00022465,3]
[385881921,1758089439535,-480.0,0.00022465,3]
[385881922,1758089439544,-560.09,0.00022465,3]
[385881923,1758089439554,-570.1,0.00022465,3]
[385881924,1758089439563,-480.0,0.00022465,3]
[385881925,1758089439573,-480.0,0.00022465,3]
[385881926,1758089439582,-480.0,0.00022465,3]
[385881927,1758089439591,-911.95,0.00022465,3]
[385881928,1758089439601,-480.0,0.00022465,3]
[385881929,1758089439611,-480.0,0.00022465,3]
[385881930,1758089439621,-1541.21,0.00022465,3]
[385881931,1758089439631,-480.0,0.00022465,3]
[385881932,1758089439641,-480.0,0.00022465,3]
[385881933,1758089439653,-514.23,0.00022465,3]
[385881934,1758089439663,-480.0,0.00022465,3]
[385881935,1758089439672,-480.0,0.00022465,3]
[385881936,1758089439682,-588.31,0.00022465,3]
[385881937,1758089439691,-536.65,0.00022465,3]
[385881938,1758089439701,-480.0,0.00022465,3]
[385881939,1758089439710,-688.24,0.00022465,3]
[385881940,1758089439720,-765.71,0.00022465,3]
[385881941,1758089439730,-480.0,0.00022465,3]
[385881942,1758089439739,-480.0,0.00022465,3]
[385881943,1758089439749,-993.51,0.00022465,3]
[385881944,1758089439758,-480.0,0.00022465,3]
[385881945,1758089439767,-480.0,0.00022465,3]
[385881946,1758089439776,-480.0,0.00022465,3]
[385881947,1758089439785,-480.0,0.00022465,3]
[385881948,1758089439794,-480.0,0.00022465,3]
[385881949,1758089439803,-480.0,0.00022465,3]
[385881950,1758089439813,-480.0,0.00022465,3]
[385881951,1758089439822,-480.0,0.00022465,3]
[385881952,1758089439831,-788.22,0.00022465,3]
[385881953,1758089439841,-480.0,0.00022465,3]
[385881954,1758089439850,-480.0,0.00022465,3]
[385881955,1758089439859,-526.52,0.00022465,3]
[385881956,1758089439869,-1282.0,0.00022465,3]
[385881957,1758089439878,-480.0,0.00022465,3]
[385881958,1758089439887,-480.0,0.00022465,2]
[385881959,1758089439896,-480.0,0.00022465,3]
[385881960,1758089439906,-961.89,0.00022465,3]
[385881961,1758089439915,-480.0,0.00022465,3]
[385881962,1758089439925,-2391.32157841,0.00022495,2]
[385881963,1758089439935,-977.0,0.00022506,2]
[385881964,1758089439944,-634.0,0.00022506,2]
[385881965,1758089439953,-2157.0,0.00022506,2]
[385881966,1758089439963,-1257.44256547,0.00022639,2]
[385881967,1758089439972,-317.47048144,0.00022729,2]
[385881968,1758089439982,-480.0,0.00022739,3]
[385881969,1758089439991,-480.0,0.00022739,3]
[385881970,1758089440000,-5759.83,0.00022739,3]
[385881971,1758089440010,-480.0,0.00022739,3]
[385881972,1758089440019,-480.0,0.00022739,3]
[385881973,1758089440028,-480.0,0.00022739,3]
[385881974,1758089440038,-480.0,0.00022739,3]
[385881975,1758089440047,-480.0,0.00022739,3]
[385881976,1758089440057,-480.0,0.00022739,3]
[385881977,1758089440066,-2865.14,0.00022739,3]
[385881978,1758089440076,-480.0,0.00022739,3]
[385881979,1758089440086,-503.98419104,0.00022739,3]
[385881980,1758089440095,-560.09,0.00022739,3]
[385881981,1758089440104,-570.1,0.00022739,3]
[385881982,1758089440113,-480.0,0.00022739,3]
[385881983,1758089440122,-480.0,0.00022739,3]